[Event "*** SCC Grand Prix: Titled Tuesday Blitz"]
[Site "Chess.com"]
[Date "2020.07.07"]
[Round "5"]
[White "JSMastropiero"]
[Black "comsac"]
[Result "1-0"]
[WhiteElo "2423"]
[BlackElo "2247"]
[TimeControl "180+1"]
[EndTime "10:55:33 PDT"]
[Termination "JSMastropiero won on time"]

1. d4 {[%clk 0:02:58.6]} 1... d5 {[%clk 0:03:00.1]} 2. c4 {[%clk 0:02:56.6]}
2... e6 {[%clk 0:03:00.5]} 3. Nc3 {[%clk 0:02:55.7]} 3... Nf6 {[%clk 0:03:00.4]}
4. cxd5 {[%clk 0:02:54.5]} 4... exd5 {[%clk 0:02:59.6]} 5. Bg5 {[%clk
0:02:54.3]} 5... Be7 {[%clk 0:02:59.7]} 6. e3 {[%clk 0:02:52.6]} 6... c6 {[%clk
0:02:58.2]} 7. Qc2 {[%clk 0:02:51.3]} 7... O-O {[%clk 0:02:58]} 8. Bd3 {[%clk
0:02:50.2]} 8... Nbd7 {[%clk 0:02:58.5]} 9. Nf3 {[%clk 0:02:48.5]} 9... Re8
{[%clk 0:02:58.7]} 10. h3 {[%clk 0:02:47.5]} 10... h6 {[%clk 0:02:58.7]} 11. Bf4
{[%clk 0:02:46]} 11... Nf8 {[%clk 0:02:49.7]} 12. O-O {[%clk 0:02:40.8]} 12...
Bd6 {[%clk 0:02:49.1]} 13. Bxd6 {[%clk 0:02:39.1]} 13... Qxd6 {[%clk 0:02:49.1]}
14. Rab1 {[%clk 0:02:38.3]} 14... a5 {[%clk 0:02:42.2]} 15. a3 {[%clk
0:02:37.4]} 15... N8h7 {[%clk 0:02:24.9]} 16. b4 {[%clk 0:02:32.6]} 16... axb4
{[%clk 0:02:25.8]} 17. axb4 {[%clk 0:02:32.5]} 17... Ng5 {[%clk 0:02:26]} 18.
Ne5 {[%clk 0:02:29.2]} 18... Rxe5 {[%clk 0:01:58.9]} 19. dxe5 {[%clk 0:02:25.4]}
19... Qxe5 {[%clk 0:01:59.8]} 20. Rfe1 {[%clk 0:01:50.7]} 20... Nfe4 {[%clk
0:01:14]} 21. f4 {[%clk 0:00:42.9]} 21... Qxc3 {[%clk 0:00:36.9]} 22. fxg5
{[%clk 0:00:42.2]} 22... Qxc2 {[%clk 0:00:32.9]} 23. Bxc2 {[%clk 0:00:42.4]}
23... Nxg5 {[%clk 0:00:32.4]} 24. e4 {[%clk 0:00:41.8]} 24... dxe4 {[%clk
0:00:29.7]} 25. Bxe4 {[%clk 0:00:41.6]} 25... Be6 {[%clk 0:00:30.1]} 26. b5
{[%clk 0:00:39.6]} 26... Ra2 {[%clk 0:00:19.7]} 27. bxc6 {[%clk 0:00:35.3]}
27... bxc6 {[%clk 0:00:05.1]} 28. Bxc6 {[%clk 0:00:35]} 28... g6 {[%clk
0:00:04.5]} 29. Rbd1 {[%clk 0:00:28]} 29... Bxh3 {[%clk 0:00:02.2]} 30. Bd5
{[%clk 0:00:11.5]} 1-0

[Event "*** SCC Grand Prix: Titled Tuesday Blitz"]
[Site "Chess.com"]
[Date "2020.07.07"]
[Round "5"]
[White "Zarinur"]
[Black "canary2016"]
[Result "0-1"]
[WhiteElo "2033"]
[BlackElo "1919"]
[TimeControl "180+1"]
[EndTime "10:55:33 PDT"]
[Termination "canary2016 won by resignation"]

1. e4 {[%clk 0:03:00.9]} 1... c6 {[%clk 0:02:59]} 2. d4 {[%clk 0:02:58.4]} 2...
d5 {[%clk 0:02:58.8]} 3. Bd3 {[%clk 0:02:56.5]} 3... dxe4 {[%clk 0:02:57.3]} 4.
Bxe4 {[%clk 0:02:51.8]} 4... Nf6 {[%clk 0:02:57.1]} 5. Bf3 {[%clk 0:02:51.6]}
5... Bf5 {[%clk 0:02:53.7]} 6. Ne2 {[%clk 0:02:49.5]} 6... e6 {[%clk 0:02:53.2]}
7. Bf4 {[%clk 0:02:44.1]} 7... Bd6 {[%clk 0:02:51.2]} 8. Bxd6 {[%clk 0:02:43.1]}
8... Qxd6 {[%clk 0:02:50.6]} 9. O-O {[%clk 0:02:42.7]} 9... O-O {[%clk
0:02:50.1]} 10. c3 {[%clk 0:02:41.1]} 10... Nbd7 {[%clk 0:02:48.2]} 11. Nd2
{[%clk 0:02:38.7]} 11... Rfe8 {[%clk 0:02:46.1]} 12. Nc4 {[%clk 0:02:37.1]}
12... Qc7 {[%clk 0:02:43.3]} 13. Ng3 {[%clk 0:02:35.5]} 13... Bg6 {[%clk
0:02:42.1]} 14. Re1 {[%clk 0:02:30.2]} 14... Rad8 {[%clk 0:02:40.5]} 15. Qb3
{[%clk 0:02:25.7]} 15... c5 {[%clk 0:02:30.8]} 16. Qxb7 {[%clk 0:02:17.6]} 16...
Qxb7 {[%clk 0:02:29.1]} 17. Bxb7 {[%clk 0:02:16.5]} 17... cxd4 {[%clk
0:02:23.1]} 18. cxd4 {[%clk 0:02:15.9]} 18... Nb6 {[%clk 0:02:15.5]} 19. Nxb6
{[%clk 0:02:12.1]} 19... axb6 {[%clk 0:02:14.4]} 20. Bc6 {[%clk 0:02:09.1]}
20... Re7 {[%clk 0:02:12.7]} 21. Rad1 {[%clk 0:02:04.8]} 21... Rc7 {[%clk
0:02:08.1]} 22. Ba4 {[%clk 0:01:56.1]} 22... Rc4 {[%clk 0:02:05]} 23. Bb3 {[%clk
0:01:51.8]} 23... Rcxd4 {[%clk 0:02:04.6]} 24. Rc1 {[%clk 0:01:45.8]} 24... h6
{[%clk 0:02:02.3]} 25. Rc6 {[%clk 0:01:40.2]} 25... Rd2 {[%clk 0:01:51.7]} 26.
Rxb6 {[%clk 0:01:37.6]} 26... Rxb2 {[%clk 0:01:51.7]} 27. h3 {[%clk 0:01:35.1]}
27... Rdd2 {[%clk 0:01:48.5]} 28. Nh1 {[%clk 0:01:04.5]} 28... Ne4 {[%clk
0:01:34]} 29. Rf1 {[%clk 0:00:30.4]} 29... Nc3 {[%clk 0:01:26]} 30. Re1 {[%clk
0:00:20.6]} 30... Bd3 {[%clk 0:01:19.5]} 31. a3 {[%clk 0:00:14]} 31... Bc2
{[%clk 0:00:59.5]} 32. Rexe6 {[%clk 0:00:09.3]} 32... Bxb3 {[%clk 0:00:52.9]}
33. Re8+ {[%clk 0:00:07.9]} 33... Kh7 {[%clk 0:00:52.4]} 34. Reb8 {[%clk
0:00:06.6]} 34... Rb1+ {[%clk 0:00:38.2]} 35. Kh2 {[%clk 0:00:06.1]} 35... Rdd1
{[%clk 0:00:36.8]} 36. Rxb3 {[%clk 0:00:04.7]} 36... Rxh1+ {[%clk 0:00:35.9]}
37. Kg3 {[%clk 0:00:04.8]} 37... Ne2+ {[%clk 0:00:33.9]} 38. Kf3 {[%clk
0:00:04.5]} 38... Nd4+ {[%clk 0:00:33.8]} 39. Ke4 {[%clk 0:00:03.9]} 39... Nxb3
{[%clk 0:00:33.8]} 0-1

[Event "*** SCC Grand Prix: Titled Tuesday Blitz"]
[Site "Chess.com"]
[Date "2020.07.07"]
[Round "5"]
[White "Tashik"]
[Black "shnitez"]
[Result "1-0"]
[WhiteElo "2384"]
[BlackElo "2501"]
[TimeControl "180+1"]
[EndTime "10:55:35 PDT"]
[Termination "Tashik won on time"]

1. c4 {[%clk 0:03:00.9]} 1... e5 {[%clk 0:02:55.6]} 2. Nc3 {[%clk 0:03:00.5]}
2... Nc6 {[%clk 0:02:55.4]} 3. Nf3 {[%clk 0:03:01]} 3... Nf6 {[%clk 0:02:54.8]}
4. e4 {[%clk 0:03:01.4]} 4... g6 {[%clk 0:02:28.8]} 5. d4 {[%clk 0:02:57]} 5...
exd4 {[%clk 0:02:23.5]} 6. Nxd4 {[%clk 0:02:57.9]} 6... Nxd4 {[%clk 0:02:15.7]}
7. Qxd4 {[%clk 0:02:58.8]} 7... d6 {[%clk 0:01:50.5]} 8. Bg5 {[%clk 0:02:51.5]}
8... Bg7 {[%clk 0:01:15.9]} 9. Nd5 {[%clk 0:02:45.4]} 9... Nh5 {[%clk
0:01:08.9]} 10. Qxg7 {[%clk 0:01:13.9]} 10... Nxg7 {[%clk 0:01:06.8]} 11. Bxd8
{[%clk 0:01:13.8]} 11... Kxd8 {[%clk 0:01:07.7]} 12. O-O-O {[%clk 0:01:12.3]}
12... Be6 {[%clk 0:01:00.3]} 13. Ne3 {[%clk 0:01:03.6]} 13... Kd7 {[%clk
0:00:54.8]} 14. Be2 {[%clk 0:01:03.6]} 14... Rae8 {[%clk 0:00:52.1]} 15. h4
{[%clk 0:01:01.4]} 15... h6 {[%clk 0:00:48.4]} 16. f4 {[%clk 0:00:56.7]} 16...
f5 {[%clk 0:00:46.1]} 17. e5 {[%clk 0:00:56.3]} 17... Ke7 {[%clk 0:00:35.9]} 18.
exd6+ {[%clk 0:00:55]} 18... cxd6 {[%clk 0:00:36.8]} 19. Bf3 {[%clk 0:00:55.2]}
19... b6 {[%clk 0:00:27.5]} 20. b3 {[%clk 0:00:54.8]} 20... Rd8 {[%clk
0:00:25.9]} 21. Kb2 {[%clk 0:00:54.5]} 21... Kf7 {[%clk 0:00:24.8]} 22. Rhe1
{[%clk 0:00:55]} 22... Ne8 {[%clk 0:00:23.4]} 23. Bd5 {[%clk 0:00:50.5]} 23...
Bxd5 {[%clk 0:00:19.4]} 24. Nxd5 {[%clk 0:00:51.4]} 24... Rd7 {[%clk 0:00:19.2]}
25. Nb4 {[%clk 0:00:44.4]} 25... Nf6 {[%clk 0:00:17.8]} 26. Nc6 {[%clk
0:00:44.9]} 26... Re8 {[%clk 0:00:17.3]} 27. a4 {[%clk 0:00:38.9]} 27... h5
{[%clk 0:00:15.2]} 28. Ka3 {[%clk 0:00:34.6]} 28... Ne4 {[%clk 0:00:15.2]} 29.
Ne5+ {[%clk 0:00:32.4]} 29... Ke6 {[%clk 0:00:11.5]} 30. Nxd7 {[%clk 0:00:31.6]}
30... Kxd7 {[%clk 0:00:12.4]} 31. a5 {[%clk 0:00:30.1]} 31... bxa5 {[%clk
0:00:11.4]} 32. c5 {[%clk 0:00:29.8]} 32... Rb8 {[%clk 0:00:06.1]} 33. cxd6
{[%clk 0:00:29.6]} 33... Rb6 {[%clk 0:00:04.4]} 34. Rd5 {[%clk 0:00:26.5]} 34...
Ra6 {[%clk 0:00:02.8]} 35. Rc1 {[%clk 0:00:24.8]} 35... Nxd6 {[%clk 0:00:01.5]}
36. Rcc5 {[%clk 0:00:23.5]} 1-0

[Event "*** SCC Grand Prix: Titled Tuesday Blitz"]
[Site "Chess.com"]
[Date "2020.07.07"]
[Round "5"]
[White "AccioChess"]
[Black "jonychess03"]
[Result "1-0"]
[WhiteElo "2487"]
[BlackElo "2317"]
[TimeControl "180+1"]
[EndTime "10:55:35 PDT"]
[Termination "AccioChess won on time"]

1. e4 {[%clk 0:02:57.9]} 1... e6 {[%clk 0:02:59.4]} 2. d4 {[%clk 0:02:56.3]}
2... d5 {[%clk 0:02:59.9]} 3. Nd2 {[%clk 0:02:56.8]} 3... Nf6 {[%clk 0:02:58.7]}
4. e5 {[%clk 0:02:53.7]} 4... Nfd7 {[%clk 0:02:58.8]} 5. c3 {[%clk 0:02:53]}
5... c5 {[%clk 0:02:59.2]} 6. Bd3 {[%clk 0:02:53.1]} 6... Nc6 {[%clk 0:02:59.6]}
7. Ne2 {[%clk 0:02:53.2]} 7... Qb6 {[%clk 0:03:00.1]} 8. Nf3 {[%clk 0:02:51.4]}
8... cxd4 {[%clk 0:03:00.3]} 9. cxd4 {[%clk 0:02:52.3]} 9... Bb4+ {[%clk
0:03:00.5]} 10. Bd2 {[%clk 0:02:50.5]} 10... Bxd2+ {[%clk 0:03:00]} 11. Qxd2
{[%clk 0:02:51.4]} 11... f6 {[%clk 0:03:00.1]} 12. exf6 {[%clk 0:02:49.1]} 12...
Nxf6 {[%clk 0:02:59.8]} 13. O-O {[%clk 0:02:48.6]} 13... O-O {[%clk 0:02:59.6]}
14. h3 {[%clk 0:02:32.2]} 14... Bd7 {[%clk 0:02:59]} 15. Rae1 {[%clk 0:02:17]}
15... Rae8 {[%clk 0:02:58.2]} 16. Nc3 {[%clk 0:02:06.3]} 16... a6 {[%clk
0:02:41.8]} 17. Bb1 {[%clk 0:02:01.3]} 17... Qc7 {[%clk 0:02:39.2]} 18. Re3
{[%clk 0:01:58.2]} 18... Qd6 {[%clk 0:02:06.1]} 19. Rfe1 {[%clk 0:01:56.8]}
19... b5 {[%clk 0:02:01.9]} 20. Ne5 {[%clk 0:01:39]} 20... Bc8 {[%clk
0:01:37.9]} 21. Ne2 {[%clk 0:00:27.4]} 21... Ne7 {[%clk 0:01:22]} 22. Ng3 {[%clk
0:00:26.8]} 22... Nf5 {[%clk 0:01:21]} 23. Nxf5 {[%clk 0:00:20.3]} 23... exf5
{[%clk 0:01:21.9]} 24. f3 {[%clk 0:00:20.4]} 24... f4 {[%clk 0:00:50.6]} 25.
R3e2 {[%clk 0:00:19.8]} 25... Nh5 {[%clk 0:00:49]} 26. Nd3 {[%clk 0:00:19.9]}
26... Rxe2 {[%clk 0:00:46.1]} 27. Qxe2 {[%clk 0:00:20.2]} 27... Bd7 {[%clk
0:00:39.1]} 28. Qe5 {[%clk 0:00:20.3]} 28... Qb6 {[%clk 0:00:08.3]} 29. Nc5
{[%clk 0:00:19.9]} 29... Re8 {[%clk 0:00:04.6]} 30. Qxd5+ {[%clk 0:00:20.1]} 1-0

[Event "*** SCC Grand Prix: Titled Tuesday Blitz"]
[Site "Chess.com"]
[Date "2020.07.07"]
[Round "5"]
[White "Semen_Khanin"]
[Black "Zq1"]
[Result "1-0"]
[WhiteElo "2713"]
[BlackElo "2517"]
[TimeControl "180+1"]
[EndTime "10:55:36 PDT"]
[Termination "Semen_Khanin won on time"]

1. e4 {[%clk 0:03:00.9]} 1... c5 {[%clk 0:02:59.2]} 2. Nf3 {[%clk 0:03:00.6]}
2... d6 {[%clk 0:02:59.2]} 3. d4 {[%clk 0:03:00.7]} 3... cxd4 {[%clk 0:02:59.3]}
4. Nxd4 {[%clk 0:03:01.3]} 4... Nf6 {[%clk 0:02:59.4]} 5. Nc3 {[%clk 0:03:01.7]}
5... Nc6 {[%clk 0:02:59.2]} 6. Bg5 {[%clk 0:03:00.6]} 6... e6 {[%clk 0:02:58.9]}
7. Qd2 {[%clk 0:02:59.1]} 7... Be7 {[%clk 0:02:58.6]} 8. O-O-O {[%clk
0:02:58.1]} 8... Nxd4 {[%clk 0:02:58.6]} 9. Qxd4 {[%clk 0:02:57.8]} 9... a6
{[%clk 0:02:58.7]} 10. f3 {[%clk 0:02:50.1]} 10... b5 {[%clk 0:02:58.1]} 11. h4
{[%clk 0:02:48.9]} 11... Bb7 {[%clk 0:02:57.3]} 12. g4 {[%clk 0:02:41.2]} 12...
Rc8 {[%clk 0:02:56.3]} 13. Be3 {[%clk 0:02:39.3]} 13... Qc7 {[%clk 0:02:43.9]}
14. g5 {[%clk 0:02:28.8]} 14... Nh5 {[%clk 0:02:31.2]} 15. Bh3 {[%clk
0:02:25.3]} 15... O-O {[%clk 0:02:16.4]} 16. Bg4 {[%clk 0:02:17.4]} 16... Ng3
{[%clk 0:02:14.7]} 17. Rh2 {[%clk 0:02:15.5]} 17... d5 {[%clk 0:02:03.5]} 18.
exd5 {[%clk 0:02:10.8]} 18... Nf5 {[%clk 0:01:49.4]} 19. Bxf5 {[%clk 0:02:03.4]}
19... Qxh2 {[%clk 0:01:47.3]} 20. dxe6 {[%clk 0:02:00.6]} 20... Rcd8 {[%clk
0:01:38.5]} 21. exf7+ {[%clk 0:01:59.1]} 21... Kh8 {[%clk 0:01:33.9]} 22. Qg4
{[%clk 0:01:33.3]} 22... b4 {[%clk 0:01:21.1]} 23. Qh5 {[%clk 0:01:27.3]} 23...
g6 {[%clk 0:00:39.4]} 24. Bxg6 {[%clk 0:01:26.8]} 24... Rxf7 {[%clk 0:00:29]}
25. Rxd8+ {[%clk 0:01:22.9]} 25... Bxd8 {[%clk 0:00:27.7]} 26. Bd4+ {[%clk
0:01:22.9]} 26... Kg8 {[%clk 0:00:27.1]} 27. Bxf7+ {[%clk 0:01:22.9]} 27... Kf8
{[%clk 0:00:26.9]} 28. Nd1 {[%clk 0:01:08.9]} 28... Qf4+ {[%clk 0:00:24.1]} 29.
Be3 {[%clk 0:00:59.6]} 29... Qxf7 {[%clk 0:00:22.6]} 30. Qh6+ {[%clk 0:00:59.5]}
30... Kg8 {[%clk 0:00:17.3]} 31. f4 {[%clk 0:00:54.6]} 31... Bc7 {[%clk
0:00:10.1]} 32. h5 {[%clk 0:00:29.9]} 32... Bxf4 {[%clk 0:00:08.1]} 33. g6
{[%clk 0:00:30.3]} 33... Bxe3+ {[%clk 0:00:03.6]} 34. Nxe3 {[%clk 0:00:30.5]}
34... hxg6 {[%clk 0:00:03.3]} 35. hxg6 {[%clk 0:00:30.9]} 35... Qe7 {[%clk
0:00:01.2]} 36. b3 {[%clk 0:00:23.6]} 1-0

[Event "*** SCC Grand Prix: Titled Tuesday Blitz"]
[Site "Chess.com"]
[Date "2020.07.07"]
[Round "5"]
[White "BakaPG"]
[Black "ace_mar"]
[Result "1-0"]
[WhiteElo "2657"]
[BlackElo "2436"]
[TimeControl "180+1"]
[EndTime "10:55:36 PDT"]
[Termination "BakaPG won by resignation"]

1. e4 {[%clk 0:03:00.9]} 1... e5 {[%clk 0:03:00.3]} 2. Nf3 {[%clk 0:03:00.1]}
2... Nc6 {[%clk 0:03:00.8]} 3. Bb5 {[%clk 0:02:59.9]} 3... a6 {[%clk 0:03:00.8]}
4. Ba4 {[%clk 0:02:59.3]} 4... Nf6 {[%clk 0:03:01.1]} 5. O-O {[%clk 0:02:58.5]}
5... Be7 {[%clk 0:03:01.5]} 6. Re1 {[%clk 0:02:57.9]} 6... b5 {[%clk 0:03:01.7]}
7. Bb3 {[%clk 0:02:57.3]} 7... d6 {[%clk 0:03:02.3]} 8. a4 {[%clk 0:02:56.8]}
8... Bd7 {[%clk 0:02:58.1]} 9. c3 {[%clk 0:02:56.5]} 9... O-O {[%clk 0:02:57]}
10. d3 {[%clk 0:02:55.2]} 10... Re8 {[%clk 0:02:54.1]} 11. Nbd2 {[%clk
0:02:54.8]} 11... Bf8 {[%clk 0:02:53.5]} 12. Nf1 {[%clk 0:02:53.6]} 12... g6
{[%clk 0:02:52.2]} 13. Ne3 {[%clk 0:02:52.2]} 13... Bg7 {[%clk 0:02:48.8]} 14.
h3 {[%clk 0:02:51.6]} 14... Na5 {[%clk 0:02:39.3]} 15. Bc2 {[%clk 0:02:50.6]}
15... c5 {[%clk 0:02:36.1]} 16. Bd2 {[%clk 0:02:49.9]} 16... Qc7 {[%clk
0:02:19.8]} 17. Nh2 {[%clk 0:02:38.8]} 17... Be6 {[%clk 0:02:11.7]} 18. Nhg4
{[%clk 0:02:37.5]} 18... Nxg4 {[%clk 0:02:10.5]} 19. hxg4 {[%clk 0:02:37.2]}
19... Qb7 {[%clk 0:01:53.3]} 20. axb5 {[%clk 0:02:11.5]} 20... axb5 {[%clk
0:01:54.2]} 21. c4 {[%clk 0:02:11.8]} 21... Nc6 {[%clk 0:01:44.8]} 22. cxb5
{[%clk 0:02:02.5]} 22... Nd4 {[%clk 0:01:38.1]} 23. Rxa8 {[%clk 0:01:55.7]}
23... Rxa8 {[%clk 0:01:39]} 24. Ba4 {[%clk 0:01:54.7]} 24... Nxb5 {[%clk
0:01:37.7]} 25. Bb3 {[%clk 0:01:49.1]} 25... Nd4 {[%clk 0:01:26.5]} 26. Bxe6
{[%clk 0:01:47.8]} 26... fxe6 {[%clk 0:01:26.7]} 27. Bc3 {[%clk 0:01:47]} 27...
d5 {[%clk 0:01:17.3]} 28. exd5 {[%clk 0:01:40.6]} 28... exd5 {[%clk 0:01:18.2]}
29. g5 {[%clk 0:01:38.3]} 29... Nb3 {[%clk 0:01:00.1]} 30. Ng4 {[%clk 0:01:31]}
30... d4 {[%clk 0:00:54.5]} 31. Bd2 {[%clk 0:01:28.5]} 31... Qd5 {[%clk
0:00:49.4]} 32. Qe2 {[%clk 0:01:20.5]} 32... Ra2 {[%clk 0:00:38.4]} 33. Bf4
{[%clk 0:01:14.4]} 33... e4 {[%clk 0:00:15.8]} 34. dxe4 {[%clk 0:01:12]} 34...
Qf7 {[%clk 0:00:12.4]} 35. Be5 {[%clk 0:01:09.4]} 35... c4 {[%clk 0:00:07.9]}
36. Bxg7 {[%clk 0:01:06]} 36... Kxg7 {[%clk 0:00:08.1]} 37. Nf6 {[%clk 0:01:04]}
37... d3 {[%clk 0:00:06.5]} 38. Qg4 {[%clk 0:01:00.7]} 38... d2 {[%clk
0:00:05.7]} 39. Rd1 {[%clk 0:00:58.4]} 39... Rxb2 {[%clk 0:00:04.7]} 40. Qc8
{[%clk 0:00:53.4]} 40... Rc2 {[%clk 0:00:03.3]} 41. Kh2 {[%clk 0:00:49.4]} 41...
Rc1 {[%clk 0:00:03.5]} 42. Rxd2 {[%clk 0:00:49.5]} 42... Nxd2 {[%clk 0:00:03.7]}
43. e5 {[%clk 0:00:48.9]} 43... c3 {[%clk 0:00:03.7]} 44. e6 {[%clk 0:00:48.4]}
44... Qf8 {[%clk 0:00:04.1]} 45. Qd7+ {[%clk 0:00:47.3]} 1-0

[Event "*** SCC Grand Prix: Titled Tuesday Blitz"]
[Site "Chess.com"]
[Date "2020.07.07"]
[Round "5"]
[White "PawnEatingZombie"]
[Black "kingofkolkata"]
[Result "0-1"]
[WhiteElo "2197"]
[BlackElo "2406"]
[TimeControl "180+1"]
[EndTime "10:55:38 PDT"]
[Termination "kingofkolkata won on time"]

1. d4 {[%clk 0:03:00.9]} 1... d5 {[%clk 0:02:59.7]} 2. c4 {[%clk 0:03:00.8]}
2... e6 {[%clk 0:03:00.2]} 3. Nc3 {[%clk 0:03:00.6]} 3... Nf6 {[%clk 0:03:00.4]}
4. cxd5 {[%clk 0:03:00.1]} 4... exd5 {[%clk 0:03:00.4]} 5. Bg5 {[%clk
0:03:00.5]} 5... Be7 {[%clk 0:02:59.9]} 6. e3 {[%clk 0:03:00.1]} 6... c6 {[%clk
0:03:00.3]} 7. Bd3 {[%clk 0:02:59.3]} 7... O-O {[%clk 0:03:00.9]} 8. Qc2 {[%clk
0:02:58.3]} 8... h6 {[%clk 0:03:00.4]} 9. Bh4 {[%clk 0:02:58.7]} 9... Re8 {[%clk
0:03:00.8]} 10. Nge2 {[%clk 0:02:58.9]} 10... Nbd7 {[%clk 0:03:01]} 11. f3
{[%clk 0:02:59.4]} 11... Bf8 {[%clk 0:02:55]} 12. Bf2 {[%clk 0:02:56.7]} 12...
c5 {[%clk 0:02:49.7]} 13. O-O {[%clk 0:02:53.4]} 13... g6 {[%clk 0:02:46.6]} 14.
dxc5 {[%clk 0:02:38.2]} 14... Nxc5 {[%clk 0:02:47.5]} 15. Nd4 {[%clk 0:02:35.5]}
15... Nxd3 {[%clk 0:02:47]} 16. Qxd3 {[%clk 0:02:34.3]} 16... Bg7 {[%clk
0:02:46.9]} 17. Rfd1 {[%clk 0:02:24.5]} 17... a6 {[%clk 0:02:47.2]} 18. Rac1
{[%clk 0:02:23.4]} 18... Qe7 {[%clk 0:02:46.7]} 19. Nce2 {[%clk 0:02:18.8]}
19... Be6 {[%clk 0:02:46.9]} 20. Nf4 {[%clk 0:02:14.3]} 20... Bd7 {[%clk
0:02:39.3]} 21. Qb3 {[%clk 0:02:08.4]} 21... Bc6 {[%clk 0:02:27.8]} 22. Nxc6
{[%clk 0:01:57.9]} 22... bxc6 {[%clk 0:02:28.7]} 23. Rxc6 {[%clk 0:01:57.5]}
23... Rab8 {[%clk 0:02:29.1]} 24. Rb6 {[%clk 0:01:57.1]} 24... Rxb6 {[%clk
0:02:25.3]} 25. Qxb6 {[%clk 0:01:56.5]} 25... Rd8 {[%clk 0:02:15.5]} 26. b3
{[%clk 0:01:53.5]} 26... g5 {[%clk 0:02:04.2]} 27. Nd3 {[%clk 0:01:48.7]} 27...
g4 {[%clk 0:02:03.5]} 28. Qxa6 {[%clk 0:01:38.1]} 28... gxf3 {[%clk 0:02:03.2]}
29. gxf3 {[%clk 0:01:38.2]} 29... Nh5 {[%clk 0:01:58]} 30. Kh1 {[%clk
0:01:04.6]} 30... d4 {[%clk 0:01:53.4]} 31. e4 {[%clk 0:00:51.8]} 31... Kh7
{[%clk 0:01:44.5]} 32. Qb5 {[%clk 0:00:36.8]} 32... Nf6 {[%clk 0:01:06.4]} 33.
Qf5+ {[%clk 0:00:36.2]} 33... Kh8 {[%clk 0:01:06]} 34. Rc1 {[%clk 0:00:35.3]}
34... Qa7 {[%clk 0:00:54.9]} 35. a4 {[%clk 0:00:24.9]} 35... Qb6 {[%clk
0:00:52.9]} 36. Ne5 {[%clk 0:00:18.4]} 36... Kg8 {[%clk 0:00:41.6]} 37. Bh4
{[%clk 0:00:11.8]} 37... d3 {[%clk 0:00:34.4]} 38. Rc8 {[%clk 0:00:10.5]} 38...
d2 {[%clk 0:00:28.1]} 39. Rxd8+ {[%clk 0:00:09.1]} 39... Qxd8 {[%clk 0:00:29]}
0-1

[Event "*** SCC Grand Prix: Titled Tuesday Blitz"]
[Site "Chess.com"]
[Date "2020.07.07"]
[Round "5"]
[White "CroissantNeuf"]
[Black "Harry_Rakkel"]
[Result "1-0"]
[WhiteElo "2420"]
[BlackElo "2552"]
[TimeControl "180+1"]
[EndTime "10:55:39 PDT"]
[Termination "CroissantNeuf won by checkmate"]

1. e4 {[%clk 0:03:00.9]} 1... c5 {[%clk 0:02:58.9]} 2. Nf3 {[%clk 0:03:00.6]}
2... d6 {[%clk 0:02:58.8]} 3. Bb5+ {[%clk 0:03:01]} 3... Bd7 {[%clk 0:02:57.7]}
4. Bxd7+ {[%clk 0:03:00.8]} 4... Nxd7 {[%clk 0:02:58.6]} 5. c3 {[%clk
0:02:59.7]} 5... Ngf6 {[%clk 0:02:54.6]} 6. Qe2 {[%clk 0:02:58.7]} 6... e6
{[%clk 0:02:52.6]} 7. d4 {[%clk 0:02:51]} 7... Be7 {[%clk 0:02:27.9]} 8. e5
{[%clk 0:02:48.9]} 8... dxe5 {[%clk 0:02:22.8]} 9. dxe5 {[%clk 0:02:48.1]} 9...
Nd5 {[%clk 0:02:22.1]} 10. c4 {[%clk 0:02:47.3]} 10... Nb4 {[%clk 0:02:20.5]}
11. O-O {[%clk 0:02:42]} 11... Qc7 {[%clk 0:02:16.8]} 12. Rd1 {[%clk 0:02:38]}
12... h6 {[%clk 0:02:12.4]} 13. Nc3 {[%clk 0:02:30.9]} 13... a6 {[%clk
0:02:11.3]} 14. Bf4 {[%clk 0:01:53.4]} 14... g5 {[%clk 0:02:05.4]} 15. Bg3
{[%clk 0:01:53.5]} 15... g4 {[%clk 0:02:02.8]} 16. Nd2 {[%clk 0:01:49.8]} 16...
h5 {[%clk 0:02:01.2]} 17. Nd5 {[%clk 0:01:35]} 17... Qd8 {[%clk 0:01:33.7]} 18.
Nxe7 {[%clk 0:01:17.5]} 18... Qxe7 {[%clk 0:01:34.6]} 19. Ne4 {[%clk 0:01:16.9]}
19... O-O-O {[%clk 0:01:28.3]} 20. Nd6+ {[%clk 0:01:04.5]} 20... Kb8 {[%clk
0:01:26.7]} 21. Qe4 {[%clk 0:01:02.4]} 21... Nc6 {[%clk 0:01:26.7]} 22. a3
{[%clk 0:00:41.8]} 22... Ka8 {[%clk 0:01:12.7]} 23. b4 {[%clk 0:00:40.6]} 23...
f6 {[%clk 0:01:08]} 24. Nxb7 {[%clk 0:00:22]} 24... Kxb7 {[%clk 0:01:07.6]} 25.
b5 {[%clk 0:00:22.5]} 25... Nb8 {[%clk 0:01:05.1]} 26. bxc6+ {[%clk 0:00:17.5]}
26... Ka7 {[%clk 0:00:40.4]} 27. exf6 {[%clk 0:00:09.5]} 27... Qxf6 {[%clk
0:00:38.1]} 28. Rab1 {[%clk 0:00:08.2]} 28... Rxd1+ {[%clk 0:00:36.6]} 29. Rxd1
{[%clk 0:00:08.8]} 29... h4 {[%clk 0:00:33.9]} 30. Be5 {[%clk 0:00:08.1]} 30...
Rd8 {[%clk 0:00:30.5]} 31. Rb1 {[%clk 0:00:05.5]} 31... Qf7 {[%clk 0:00:14]} 32.
c7 {[%clk 0:00:05.5]} 32... Rf8 {[%clk 0:00:08.7]} 33. Qb7# {[%clk 0:00:05.4]}
1-0